Cogmind - Beta 11 X9 @@@ ROGUE MODE // 2022.01.23 @ 12:07:52 Player: LU-1G1 Result: Self-destructed Performance ------------- Evolutions (2) 1000 Regions Visited (5) 1000 Robots Destroyed (41) 205 Value Destroyed (785) 785 Prototype IDs (23) 460 Alien Tech Used (0) 0 Bonus (300) 300 TOTAL SCORE: 3750 Bonus ------- Aligned with FarCom 300 Cogmind --------- Core Integrity 433/550 Matter 199/300 Energy 100/100 System Corruption 0% Temperature Cool (0) Movement Core (350) Ox6 Location -8/Materials Parts ------- > --- POWER (1) -------- (None) > --- PROPULSION (3) --- (None) > --- UTILITY (5) ------ Large Storage Unit Core Shielding > --- WEAPON (2) ------- (None) > --- INVENTORY (15) --- Light Nuclear Core Small Storage Unit Huge Storage Unit Lightpack 2.0 High-capacity Matter Pod (200) Utility Shielding Light Armor Plating Grenade Launcher Katana Peak State ------------ > --- POWER ------------ Ion Engine > --- PROPULSION ------- Improved Treads Improved Treads Improved Treads > --- UTILITY ---------- Large Storage Unit Improved Terrain Scanner Core Shielding Heavy Armor Plating > --- WEAPON ----------- Heavy Assault Rifle Heavy Assault Rifle > --- INVENTORY -------- Light Ion Engine Small Storage Unit Huge Storage Unit Lightpack 2.0 High-capacity Matter Pod Utility Shielding Light Armor Plating Heavy Assault Rifle Grenade Launcher Katana [Rating: 26] Favorites ----------- Power Ion Engine Engine Ion Engine Propulsion Improved Treads Treads Improved Treads Utility Improved Terrain Scanner Device Improved Terrain Scanner Storage Small Storage Unit Protection Core Shielding Weapon Heavy Assault Rifle Ballistic Gun Heavy Assault Rifle Launcher Grenade Launcher Build | -11 -10 -10 -10 -9 -8 ------- Run | Scr Mat Min Exi Min Mat Slots Evolved 4 | . . . . . 4 Power . | . . . . . . Propulsion 1 | . . . . . 1 Utility 3 | . . . . . 3 Weapon . | . . . . . . Parts Attached 30 | 7 7 2 1 3 10 Power 2 | 1 . . . . 1 Engine 2 | 1 . . . . 1 Core . | . . . . . . Reactor . | . . . . . . Propulsion 9 | 2 3 . . 1 3 Treads 9 | 2 3 . . 1 3 Leg . | . . . . . . Wheel . | . . . . . . Hover . | . . . . . . Flight . | . . . . . . Utility 6 | 2 . . 1 . 3 Device 1 | 1 . . . . . Storage 2 | 1 . . 1 . . Processor . | . . . . . . Hackware . | . . . . . . Protection 3 | . . . . . 3 Artifact . | . . . . . . Weapon 13 | 2 4 2 . 2 3 Energy Gun . | . . . . . . Energy Cannon . | . . . . . . Ballistic Gun 10 | 2 4 1 . 1 2 Ballistic Cannon . | . . . . . . Launcher 3 | . . 1 . 1 1 Special Weapon . | . . . . . . Impact Weapon . | . . . . . . Slashing Weapon . | . . . . . . Piercing Weapon . | . . . . . . Special Melee Weapon . | . . . . . . Unidentified Prototypes . | . . . . . . Parts Lost 12 | . . . . . 12 Power 2 | . . . . . 2 Propulsion 5 | . . . . . 5 Utility 2 | . . . . . 2 Weapon 3 | . . . . . 3 Highest Loss Streak 6 | . . . . . 6 Average Slot Usage (%) 97 | . 99 100 100 99 77 Engine 13 | . 14 14 14 14 6 Treads 27 | . 27 28 28 27 22 Device 13 | . 14 14 14 14 9 Storage 13 | . 14 14 14 14 9 Protection 1 | . . . . . 12 Ballistic Gun 26 | . 28 27 28 28 17 Naked Turns . | . . . . . . Heaviest Build 48 | 15 17 17 32 32 48 Greatest Support 66 | 40 46 46 46 46 66 Greatest Overweight (x) 1 | . . . . . 1 Average Overweight (x) . | . . . . . . Largest Inventory Capacity 15 | 8 8 8 15 15 15 Average Capacity 10 | 7 8 8 13 15 15 Most Carried 15 | 6 8 8 13 15 15 Average Carried 9 | 4 7 8 10 13 12 Final Capacity 15 | 8 8 8 15 15 15 Final Carried 15 | 6 8 8 13 15 11 Class Distribution -------------------- 83% | Mutant 16% | Skirmisher Dominant Class ---------------- Mutant | -10/Materials Mutant | -10/Mines Mutant | -10/Exiles Skirmisher | -9/Mines Skirmisher | -8/Materials Resources | -11 -10 -10 -10 -9 -8 ----------- Run | Scr Mat Min Exi Min Mat Matter Collected 939 | 318 39 125 132 100 225 Remotely . | . . . . . . Salvage Created 1124 | 100 112 97 . 115 700 Parts 85 | 7 14 13 . 8 43 Haulers Intercepted 1 | . . . . . 1 Recyclers Shooed 4 | 1 . 1 . . 2 Parts Field Recycled . | . . . . . . Retrieved Matter . | . . . . . . Parts Self-Destructed . | . . . . . . Prevented . | . . . . . . Kills | -11 -10 -10 -10 -9 -8 ------- Run | Scr Mat Min Exi Min Mat Combat Hostiles Destroyed 31 | . 6 7 . 6 12 Guns 23 | . 6 4 . 3 10 AOE 8 | . . 3 . 3 2 Classes Destroyed 10 | 3 2 1 . 1 3 Worker 3 | 1 . . . . 2 Builder 2 | . . . . . 2 Tunneler 1 | 1 . . . . . Hauler 1 | . . . . . 1 Recycler 2 | 1 . . . . 1 Watcher 1 | . 1 . . . . Swarmer 20 | . 6 6 . 5 3 Grunt 9 | . . 1 . . 8 Duelist 1 | . . . . 1 . Sentry 1 | . . . . . 1 Best Kill Streak 13 | 2 4 3 . 3 13 Combat Bots Only 8 | . 3 3 . 3 8 Max Kills in Single Turn 4 | 1 1 2 . 3 4 Gunslinging . | . . . . . . Exploded 3 | . . 2 . 3 1 Melee . | . . . . . . Uniques/NPCs Destroyed . | . . . . . . Combat | -11 -10 -10 -10 -9 -8 -------- Run | Scr Mat Min Exi Min Mat Damage Taken 1922 | . 107 206 . 204 1405 Core 154 | . 13 15 . 9 117 Absorbed by Shields . | . . . . . . Core Remaining (%) 92 | 100 . . . 85 . Volleys Fired 87 | 8 11 10 . 11 47 Largest 2 | 2 2 2 . 2 2 Hottest 53 | 40 40 46 . 46 53 Shots Fired 171 | 16 22 18 . 21 94 Gun 166 | 16 22 16 . 20 92 Cannon . | . . . . . . Launcher 5 | . . 2 . 1 2 Special . | . . . . . . Kinetic 166 | 16 22 16 . 20 92 Thermal . | . . . . . . Explosive 5 | . . 2 . 1 2 Electromagnetic . | . . . . . . Robot Hit Streak 31 | 4 5 5 . 6 31 Robot Miss Streak 3 | 2 3 3 . 2 2 Penetration Max . | . . . . . . Secondary Targets 2 | . 1 . . . 1 Max Gunslinging Chain 1 | . 1 . . . 1 Shots Hit Robots 115 | 11 13 9 . 15 67 Core Hits 64 | 4 7 8 . 8 37 Critical Kills 1 | . 1 . . . . Critical Parts Destroyed . | . . . . . . Critical Strikes 1 | . 1 . . . . Destroy 1 | . 1 . . . . Melee Attacks . | . . . . . . Impact . | . . . . . . Slashing . | . . . . . . Piercing . | . . . . . . Sneak Attacks . | . . . . . . Combat Hostiles . | . . . . . . Follow-up Attacks . | . . . . . . Damage Inflicted 2261 | 137 171 285 . 365 1303 Guns 1673 | 137 171 148 . 218 999 Cannons . | . . . . . . Explosions 576 | . . 136 . 144 296 Melee . | . . . . . . Ramming 12 | . . 1 . 3 8 Kinetic 1673 | 137 171 148 . 218 999 Thermal . | . . . . . . Explosive 576 | . . 136 . 144 296 Electromagnetic . | . . . . . . Impact . | . . . . . . Slashing . | . . . . . . Piercing . | . . . . . . Highest Corruption . | . . . . . . Average Corruption . | . . . . . . Corruption Purged . | . . . . . . Overload Shots . | . . . . . . Overflow Damage . | . . . . . . Projectiles . | . . . . . . Explosions . | . . . . . . Melee . | . . . . . . Knockbacks . | . . . . . . Impact . | . . . . . . Kinetic . | . . . . . . Secondary . | . . . . . . Self-Inflicted Damage 61 | . . 15 . 28 18 Shots 3 | . . 1 . 1 1 Rammed 6 | . . 2 . 1 3 Targets Rammed 6 | . . 2 . 1 3 Kicked . | . . . . . . Crushed . | . . . . . . Highest Temperature 22 | . . 4 . . 22 Average Temperature 6 | . . 4 . . 6 Received Heat Transfer 873 | . . 45 . . 828 Siege Activations . | . . . . . . Robots Corrupted . | . . . . . . Combat Hostiles . | . . . . . . Parts Fried . | . . . . . . Impact Corruptions . | . . . . . . Robots Melted . | . . . . . . Combat Hostiles . | . . . . . . Parts Melted . | . . . . . . Heat Transferred . | . . . . . . Parts Sabotaged . | . . . . . . Parts Stolen . | . . . . . . Parts Stripped . | . . . . . . Power Chain Reactions . | . . . . . . Missiles Intercepted . | . . . . . . Alert | -11 -10 -10 -10 -9 -8 ------- Run | Scr Mat Min Exi Min Mat Peak Influence 324 | 15 204 75 . 145 324 Initial 9 | . 9 5 . . . Average 47 | 3 68 25 . 90 95 Maximum Alert Level 1 | . 1 . . . 1 Low Security (%) 96 | 100 94 100 . 100 71 Level 1 3 | . 5 . . . 28 Level 2 . | . . . . . . Level 3 . | . . . . . . Level 4 . | . . . . . . Level 5 . | . . . . . . High Security . | . . . . . . Max Security . | . . . . . . Squads Dispatched 6 | . . . . . 6 Investigation . | . . . . . . Extermination . | . . . . . . Reinforcement 3 | . . . . . 3 Assault . | . . . . . . Garrison 3 | . . . . . 3 Intercept . | . . . . . . Construction Impeded 1 | . . . . . 1 Haulers Reinforced . | . . . . . . Active Scanning Responses . | . . . . . . Cargo Convoy Interrupts . | . . . . . . Stealth | -11 -10 -10 -10 -9 -8 --------- Run | Scr Mat Min Exi Min Mat Distress Signals 2 | . 1 . . . 1 Communications Jammed . | . . . . . . Distress Signals . | . . . . . . Times Spotted 44 | . 9 7 . 9 19 Peak Tracking Total 7 | . 4 3 . 4 7 Tactical Retreats 3 | . 1 . . 2 . Traps | -11 -10 -10 -10 -9 -8 ------- Run | Scr Mat Min Exi Min Mat Traps Triggered 2 | . 2 . . . . Indirectly . | . . . . . . Trap Hack Attempts . | . . . . . . Triggered . | . . . . . . Disarmed . | . . . . . . Reprogrammed . | . . . . . . Reused . | . . . . . . Traps Extracted . | . . . . . . Installed . | . . . . . . Triggered 1 | . . 1 . . . Machines | -11 -10 -10 -10 -9 -8 ---------- Run | Scr Mat Min Exi Min Mat Machines Disabled 2 | . . . . . 2 Max in Single Turn 2 | . . . . . 2 Machines Sabotaged . | . . . . . . Garrisons Compromised . | . . . . . . Overloaded Fab Kills . | . . . . . . Hacking | -11 -10 -10 -10 -9 -8 --------- Run | Scr Mat Min Exi Min Mat Machines Accessed 7 | . 4 . 2 . 1 Terminals 5 | . 4 . . . 1 Fabricators . | . . . . . . Repair Stations . | . . . . . . Recycling Units . | . . . . . . Scanalyzers . | . . . . . . Garrison Access . | . . . . . . Total Hacks 16 | . 11 . 2 . 3 Successful 8 | . 5 . 2 . 1 Failed 8 | . 6 . . . 2 Catastrophic 2 | . 2 . . . . Database Lockouts . | . . . . . . Manual 12 | . 11 . 1 . . Terminals 14 | . 11 . . . 3 Fabricators . | . . . . . . Repair Stations . | . . . . . . Recycling Units . | . . . . . . Scanalyzers . | . . . . . . Garrison Access . | . . . . . . Terminal Hacks 8 | . 5 . 2 . 1 Record 1 | . . . 1 . . Part Schematic 2 | . 2 . . . . Robot Schematic 1 | . 1 . . . . Branch Access Points 1 | . . . . . 1 Emergency Access Points 1 | . 1 . . . . Unreport Threat 1 | . 1 . . . . EX-Prototype ID Bank 1 | . . . 1 . . Fabricator Hacks . | . . . . . . Repair Station Hacks . | . . . . . . Recycling Unit Hacks . | . . . . . . Scanalyzer . | . . . . . . Garrison Access Hacks . | . . . . . . Unauthorized Hacks . | . . . . . . Terminals . | . . . . . . Fabricators . | . . . . . . Repair Stations . | . . . . . . Recycling Units . | . . . . . . Scanalyzers . | . . . . . . Garrison Access . | . . . . . . Data Cores Recovered . | . . . . . . Used . | . . . . . . Hacking Detections 5 | . 4 . . . 1 Full Trace Events 1 | . 1 . . . . Feedback Events . | . . . . . . Feedback Blocked . | . . . . . . Robot Schematics Acquired 1 | . 1 . . . . Robots Built . | . . . . . . Authchips . | . . . . . . Time . | . . . . . . Total Robot Build Rating . | . . . . . . Part Schematics Acquired 2 | . 2 . . . . Parts Built . | . . . . . . Authchips . | . . . . . . Time . | . . . . . . Total Part Build Rating . | . . . . . . Parts Repaired . | . . . . . . Time . | . . . . . . Parts Recycled . | . . . . . . Recycled Matter . | . . . . . . Retrieved Matter . | . . . . . . Retrieved Components . | . . . . . . Parts Scanalyzed . | . . . . . . Part Schematics Acquired . | . . . . . . Parts Damaged . | . . . . . . Bothacking | -11 -10 -10 -10 -9 -8 ------------ Run | Scr Mat Min Exi Min Mat Used RIF Installer . | . . . . . . Robots Hacked . | . . . . . . Non-combat . | . . . . . . Combat . | . . . . . . Robot Hacks Applied . | . . . . . . Relay Couplers Released . | . . . . . . Fabnet Peak Effective % . | . . . . . . Robots Rewired . | . . . . . . Allies Hacked . | . . . . . . Hacks Repelled . | . . . . . . Allies | -11 -10 -10 -10 -9 -8 -------- Run | Scr Mat Min Exi Min Mat Total Allies 3 | . . 1 . 2 . Largest Group 2 | . . 1 1 2 . Highest-Rated Group 46 | . . 31 31 46 . Highest-Rated Ally 31 | . . 31 31 31 . Total Orders . | . . . . . . Ally Attacks 5 | . . . . 5 . Total Damage 62 | . . . . 62 . Kills 2 | . . . . 2 . Allies Corrupted 1 | . . . . 1 . Allies Melted . | . . . . . . Intel | -11 -10 -10 -10 -9 -8 ------- Run | Scr Mat Min Exi Min Mat Robot Analysis Total . | . . . . . . Derelict Logs Recovered 2 | . . 2 . . . Drone Launches . | . . . . . . Drone Recoveries . | . . . . . . Exploration | -11 -10 -10 -10 -9 -8 ------------- Run | Scr Mat Min Exi Min Mat Turns Passed 3646 | 142 496 1752 514 417 325 Spaces Moved 1636 | 66 276 639 319 236 100 Core 3 | 3 . . . . . Treads 1633 | 63 276 639 319 236 100 Legs . | . . . . . . Wheels . | . . . . . . Hover . | . . . . . . Flight . | . . . . . . Fastest Speed 50 | 50 160 160 160 160 160 Average Speed 159 | 155 160 160 160 160 161 Slowest Speed 240 | 160 160 160 160 160 240 Overloaded Moves . | . . . . . . Propulsion Burnouts . | . . . . . . Robots Hopped . | . . . . . . Cave-ins Triggered . | . . . . . . Exploration Rate (%) 50 | 4 51 98 70 58 19 Regions Visited 5 Branch Regions 3 Pre-discovered Areas 3 | . . 2 1 . . Known Exits Taken . | . . . . . . Unknown Exits Taken 5 | 1 1 1 1 1 . Scrap Searched 2 | . . 1 . 1 . Spaces Dug 6 | . . 6 . . . Terrain Destroyed 30 | . . 13 . 7 10 Melee . | . . . . . . Projectile . | . . . . . . AOE 30 | . . 13 . 7 10 Terrain Rammed . | . . . . . . Walls Destroyed . | . . . . . . Machines Disabled . | . . . . . . Actions | -11 -10 -10 -10 -9 -8 --------- Run | Scr Mat Min Exi Min Mat Total 2490 | 86 314 1349 323 252 166 Wait 703 | . 3 697 . . 3 Move 1631 | 65 275 638 318 235 100 Hop . | . . . . . . Pick Up 21 | 6 8 . 3 2 2 Fast Attach 12 | 7 3 . . 1 1 Attach 7 | . . . . . 7 Detach 1 | . . . . . 1 Swap 11 | . 4 2 1 2 2 Drop 11 | . 10 . 1 . . Fire 87 | 8 11 10 . 11 47 Melee . | . . . . . . Ram . | . . . . . . Kick . | . . . . . . Crush 6 | . . 2 . 1 3 Escape Stasis . | . . . . . . Rewire . | . . . . . . Trap . | . . . . . . Miscellaneous . | . . . . . . Route ------- -11/Scrapyard -10/Materials (discovered 3 exits: [*Mat x2] / [*Min]) -10/Mines (discovered 3 exits: [*Mat x2] / *Exi) -10/Exiles -9/Mines -8/Materials History --------- Turn | Location | Event 17 | -11/Scrapyard | Discovered new exit (range 14) 143 | -11/Scrapyard | Entered Materials 315 | -10/Materials | Build established: Mutant 371 | -10/Materials | Discovered new exit (range 12) 516 | -10/Materials | Discovered new exit (range 4) 628 | -10/Materials | Discovered new exit (range 7) 639 | -10/Materials | Entered Mines 814 | -10/Mines | Learned location of Zion (-6) 832 | -10/Mines | Discovered new exit (range 13) 987 | -10/Mines | Learned location of Mines (-9) 1926 | -10/Mines | Discovered new exit (range 7) 2302 | -10/Mines | Received a Mining Laser from a helpful Derelict 2382 | -10/Mines | Deemed a non-threat by the Exiles lab entrance 2383 | -10/Mines | Discovered new exit (range 5) 2391 | -10/Mines | Entered Exiles 2391 | -10/Exiles | Accompanied by 1 ally 2435 | -10/Exiles | Met 8R-AWN 2457 | -10/Exiles | Met EX-HEX 2562 | -10/Exiles | Met EX-DEC 2618 | -10/Exiles | Met EX-BIN 2640 | -10/Exiles | Aligned with FarCom system 2642 | -10/Exiles | Given EX-Vault access code 2679 | -10/Exiles | Opened EX-Vault 2688 | -10/Exiles | Found Lightpack 2.0 2720 | -10/Exiles | Warned to stay clear of 0b10 Research branches 2892 | -10/Exiles | Discovered new exit (range 10) 2905 | -10/Exiles | Left Exiles lab with Lightpack 2.0 2905 | -10/Exiles | Entered Mines 2993 | -9/Mines | Assembled infested the area 3296 | -9/Mines | Discovered new exit (range 13) 3322 | -9/Mines | Entered Materials 3322 | -8/Materials | Evolved 4 slots: Propulsion x1, Utility x3 3337 | -8/Materials | Build established: Skirmisher 3426 | -8/Materials | Garrison activated, responded to threat 3527 | -8/Materials | Garrison activated, responded to threat 3545 | -8/Materials | Lost 4 parts (1p2n1u) 3577 | -8/Materials | Destroyed 8 combat bots 3647 | -8/Materials | Self-destructed Last Messages --------------- 03566_ Acquired 58 matter. 03585_ Hvy. Assault Rifle destroyed. 03585_ Critical hit (Burn: +37). 03594_ Slammed into G-47 Trooper. 03599_ Critical hit (Burn: +37). 03606_ G-47 Trooper destroyed. 03622_ Acquired Lgt. Nuclear Core. 03623_ Acquired 59 matter. 03632_ Destroyed Heat Sink. 03638_ Y-45 Defender destroyed. 03638_ Switching to secondary target: G-47 Trooper. 03639_ ALERT: Hostiles spotted, dispatching reinforcements to Terminal M010. 03640_ Critical hit (Burn: +37). 03642_ Imp. Treads destroyed. 03642_ Lgt. Ion Engine destroyed. 03642_ Imp. Treads destroyed. 03645_ Hvy. Assault Rifle destroyed. 03645_ Imp. Terrain Scanner destroyed. 03646_ Hvy. Assault Rifle destroyed. Map ----- +----------------------------------------------------+ | ???????????????????? ? ##########%* #?? ??#??? | | ????????????????? ???? ?##????#### = ##?? # ? | | ??????????? ????????????######### *%= #? #??? | | ????"?????????????? ????## ! [*= #????? # ?? | | ?????????????????? ?????? + %%=#??????? #??? | | ????????????? ????????????# ""==[%!##???????+??? | | ?????????????????????????## S""=#*=% #??????????? | | ????????????????????#??#?##! ""=%+=!*##??????????? | | ??????????????????????????# %%=# *%#???????????? | | ??????????????????????????######## !=###???? ????? | | ????????????????????? ??######## !*!* #?? ???? | | ????????????????????? ??# | #? ??????? | | ????????????????????????# #????? ???? | | ??????????????????#?????# T #? ???????? | | ???????????????? ???????# #??#?#??#?? | | ??????????????????####### #????#????? | | ?????????????/ ## #?????????? | | ?????????????#???######## #####+####?#?#?????? | | ????????????????g?###??## # ? ?Y??#??????? | | ????????????????g????#??# # "?? ??##????????? | | ????????????????????????# #???? ??#?????????? | | ???????????????#+######## #??? ?????????????? | | ?????????????"?# # #?"????????????????? | | ???????????????# / # #??????? ??????????? | | ?????????????? # [=# #??????????????????? | | ???????????? ??# !%#@ #?????????#????????? | | ???????????????# =g #??????????????????? | | ???????????"???# !#[ #??????????????????? | | ?????????????? # #* #???#??????????????? | | ???????????????# #%! #???? ??? ?????????? | | ???????????????# #= #??????????????????? | | ???????????????########## #??????????????????? | | ????????????????? ?????? #????"?????????????? | | ???????????????????????? +??????????????????? | | ??????????????????? ???? #??????????????????? | | ???????????????????????? #??? ??????????????? | | ????????????????? ?????? ##?????????????????? | | ??????????????????????#?###Y###??????????????????? | | ??????????????????????????? ????????????????????? | | ???????????????????#?? ???? ????????????????????? | | ????????????????????#?????? ?????????????????????? | | ?????????????????????????????????????????????????? | | ?????????????????????????????????????????????????? | | ?????????????????????????????????????????????????? | | ?????????????????????????????????????????????????? | | ?????????????????????????????????????????????????? | | ?????????????????????????????????????????????????? | | ?????????????????????????????????????????????????? | | ?????????????????????????????????????????????????? | | ?????????????????????????????????????????????????? | +----------------------------------------------------+ Best States ------------- Heat Dissipation 31 Energy Generation 10 Energy Capacity 250 Matter Stores 300 Matter Capacity 300 Sight Range 16 Terrain Scan Range 16 Terrain Scan Density 10 Armor Coverage 600 Core Shielding 20 Evasion (%) 40 Recoil Reduction 3 Item Schematics ----------------- Huge Storage Unit | -10/Materials | Hacked Med. Storage Unit | -10/Materials | Hacked Robot Schematics ------------------ O-16 Technician | -10/Materials | Hacked Fabricated ------------ Nothing Alien Tech Used ----------------- None Achievements -------------- None Challenges ------------ None Game ------ Seed ZioniteMetafiberDriver Manual? 0 Play Time 00:16:15 Cumulative 440.7 hours Start 2022.01.23 @ 07:21:32 End 2022.01.23 @ 12:07:52 Sessions 3 Manual Loads 0 Difficulty Rogue Special Mode None Game No. 428 Rogue 213 Adventurer 112 Explorer 103 Win Type - Total 29 Types 21/0/5/2/0/0/0/1/0 Lore% 86 Gallery% 90 Achievement% 80 Wizard Run 0 Options --------- ASCII 1 Keyboard 1 Movement Vi Keybinds 1 Fullscreen 2 Font 18/SmallcapsGlow Map View 76x50 Tactical HUD 1 Map Filters NONE Filters NONE Steam 1 RUN: 924dc3ec-9b87-4265-b3f6-11ef3c2f5fda